bitfinex/quotes_SOLUSD_20220101
["timestamp","ask_amount","ask_price","bid_price","bid_amount"]
[1641016714045,10.1888,173.2,173.1,10.3918]
[1641016714846,10.1888,173.2,173.1,10.6518]
[1641016715848,10.6888,173.2,173.04,77.22109368]
[1641016716050,10.6888,173.2,173.04,75.7944]
[1641016716249,10.6888,173.2,173.04,76.2944]
[1641016716656,10.6888,173.2,173.05,1.3411]
[1641016716858,3.26716595,173.18,173.06,31.85007822]
[1641016717053,8.6669,173.14,173.06,31.85007822]
[1641016717255,1.2787,173.17,173.06,32.11007822]
[1641016717453,1.7787,173.17,173.06,32.11007822]
[1641016717655,5.30586595,173.17,173.06,32.11007822]
[1641016717857,5.30586595,173.17,173.06,32.61007822]
[1641016718561,8.6666,173.14,173.06,32.61007822]
[1641016719157,1.2787,173.17,173.06,32.61007822]
[1641016720058,1.2787,173.17,173.07,1.2925]
[1641016720260,1.7787,173.17,173.07,1.2925]
[1641016720463,2.0387,173.17,173.07,0.26]
[1641016721161,8.6665,173.14,173.06,9.4262]
[1641016721460,8.9265,173.14,173.06,9.4262]
[1641016721864,8.9265,173.14,173.06,0.76]
[1641016722064,8.9265,173.14,173.05,1.5966]
[1641016722263,9.1665,173.14,173.05,2.0966]
[1641016722864,8.6665,173.14,173.05,2.0966]
[1641016723265,9.1665,173.14,173.05,2.0966]
[1641016723563,9.1665,173.14,173.05,0.76]
[1641016723963,38.2465,173.14,173.04,85.2213]
[1641016725166,38.2465,173.14,173.04,76.5544]
[1641016725866,38.2465,173.14,173.04,0.5]
[1641016726067,38.2465,173.14,172.96,28.8965]
[1641016726268,1.2894,173.13,172.96,107.6705]
[1641016726466,8.6693,173.09,173.0,8.6692]
[1641016726869,8.9293,173.09,173.0,9.1692]
[1641016727269,8.9293,173.09,173.0,9.4292]
[1641016727469,0.26,173.09,173.0,9.4292]
[1641016727701,0.26,173.09,173.0,10.727]
[1641016727898,0.26,173.13,173.0,10.727]
[1641016728097,1.2553,173.13,173.0,10.727]
[1641016728299,3.52716595,173.14,173.0,10.727]
[1641016728498,0.26,173.14,173.0,10.727]
[1641016728798,0.26,173.14,173.06,8.6658]
[1641016728999,10.2655,173.16,173.06,16.1748]
[1641016729199,10.2655,173.16,173.06,16.6748]
[1641016730199,10.7655,173.16,173.06,16.6748]
[1641016730399,10.7655,173.16,173.06,9.4258]
[1641016731100,10.2655,173.16,173.06,9.4258]
[1641016731403,10.7655,173.16,173.06,9.4258]
[1641016732006,10.2655,173.16,173.06,9.4258]
[1641016732405,10.2655,173.16,173.06,0.76]
[1641016732406,10.7655,173.16,173.06,0.76]
[1641016732604,10.7655,173.16,173.04,9.4268]
[1641016732803,10.2655,173.16,173.04,9.4268]
[1641016733802,10.7655,173.16,173.04,9.4268]
[1641016734403,10.7655,173.16,173.05,10.0145]
[1641016734604,10.2655,173.16,173.05,10.7745]
[1641016736305,10.7655,173.16,173.05,10.7745]
[1641016737505,10.7655,173.16,173.05,9.4264]
[1641016737905,10.2655,173.16,173.05,9.4264]
[1641016738107,10.0055,173.16,173.05,9.4264]
[1641016738907,10.5055,173.16,173.05,9.4264]
[1641016739510,10.2655,173.16,173.06,9.9798]
[1641016739707,10.2655,173.16,173.06,10.4798]
[1641016739907,10.2655,173.16,173.06,10.7398]
[1641016740307,10.2655,173.16,173.06,42.33464821]
[1641016740507,1.5995,173.16,173.06,47.64364821]
[1641016740708,85.95036595,173.18,173.06,47.64364821]
[1641016740908,77.28536595,173.18,173.06,47.64364821]
[1641016741112,3.26716595,173.18,173.06,47.64364821]
[1641016741513,1.2462,173.19,173.06,47.64364821]
[1641016741912,0.7462,173.19,173.06,47.64364821]
[1641016742111,0.7462,173.19,173.06,116.62824821]
[1641016743516,3.26716595,173.21,173.06,118.05494189]
[1641016743917,28.82,173.26,173.06,118.05494189]
[1641016743918,3.26716595,173.22,173.06,118.05494189]
[1641016744918,1.2901,173.23,173.06,118.05494189]
[1641016745120,1.5501,173.23,173.06,118.05494189]
[1641016748018,1.2901,173.23,173.06,118.05494189]
[1641016748625,1.2901,173.23,173.06,123.72509818]
[1641016749221,3.26716595,173.25,173.06,132.5248604]
[1641016749422,3.26716595,173.26,173.06,132.5248604]
[1641016749628,3.26716595,173.26,173.07,8.84269071]
[1641016749821,3.26716595,173.26,173.17,27.8834607]
[1641016750021,3.26716595,173.26,173.17,28.1434607]
[1641016750221,3.26716595,173.26,173.17,28.6434607]
[1641016750423,3.26716595,173.29,173.17,28.6434607]
[1641016750622,3.26716595,173.29,173.18,1.3218]
[1641016751025,3.26716595,173.3,173.18,2.0818]
[1641016751427,3.52716595,173.3,173.18,2.0818]
[1641016751624,3.52716595,173.3,173.22,8.6581]
[1641016752124,3.52716595,173.3,173.22,9.4181]
[1641016752324,3.26716595,173.3,173.22,9.4181]
[1641016752932,9.83032528,173.33,173.22,9.4181]
[1641016754353,6.56315933,173.33,173.22,9.4181]
[1641016754953,9.83032528,173.33,173.22,9.4181]
[1641016755554,6.56315933,173.33,173.22,9.4181]
[1641016755955,9.83032528,173.33,173.22,9.4181]
[1641016758960,19.24732528,173.33,173.22,9.4181]
[1641016759762,3.26716595,173.31,173.22,9.4181]
[1641016759958,11.92536595,173.31,173.22,9.4181]
[1641016760162,12.18536595,173.31,173.22,9.4181]
[1641016760359,12.18536595,173.31,173.22,8.9181]
[1641016760559,3.26716595,173.3,173.22,8.9181]
[1641016760760,3.26716595,173.3,173.22,8.6581]
[1641016761069,10.09032528,173.3,173.22,8.6581]
[1641016761261,18.74892528,173.3,173.22,8.6581]
[1641016761661,18.74892528,173.3,173.22,9.1581]
[1641016762062,18.74892528,173.3,173.22,0.76]
[1641016762259,12.18576595,173.3,173.22,0.76]
[1641016762459,12.18576595,173.3,173.21,9.4188]
[1641016763263,3.52716595,173.3,173.21,9.4188]
[1641016766567,3.26716595,173.3,173.21,9.4188]
[1641016767169,3.26716595,173.32,173.21,9.4188]
[1641016767768,1.2905,173.33,173.21,9.4188]
[1641016769170,1.2905,173.33,173.22,1.2597]
[1641016769370,1.2905,173.33,173.27,8.6557]
[1641016769572,3.26716595,173.34,173.27,8.9157]
[1641016769772,3.26716595,173.34,173.27,9.4157]
[1641016769970,3.52716595,173.34,173.27,9.4157]
[1641016770172,3.26716595,173.34,173.27,9.4157]
[1641016770371,6.56295059,173.33,173.27,9.4157]
[1641016770769,3.26716595,173.34,173.27,9.4157]
[1641016773571,1.64075284,173.3,173.27,9.4157]
[1641016774674,1.64075284,173.29,173.27,9.4157]
[1641016775272,1.64075284,173.29,173.24,79.0234]
[1641016775472,1.64075284,173.29,173.24,0.26]
[1641016775671,1.64075284,173.29,173.24,0.5]
[1641016775872,1.64075284,173.29,173.2,1.8604]
[1641016776271,1.64075284,173.29,173.21,23.20313902]
[1641016776471,1.64075284,173.29,173.21,23.70313902]
[1641016776671,1.64075284,173.28,173.22,8.6584]
[1641016776873,1.64075284,173.28,173.22,9.1584]
[1641016777074,1.64075284,173.28,173.22,9.4184]
[1641016779974,1.64075284,173.28,173.22,0.26]
[1641016780376,1.64075284,173.28,173.21,0.5]
[1641016780576,1.64075284,173.28,173.21,0.76]
[1641016780777,1.64075284,173.26,173.21,0.5]
[1641016781178,1.64075284,173.26,173.21,8.6589]
[1641016781377,1.64075284,173.26,173.21,9.1589]
[1641016781576,3.97414784,173.26,173.21,9.1589]
[1641016781978,3.97414784,173.26,173.21,9.4189]
[1641016782382,2.333395,173.26,173.21,9.4189]
[1641016791591,1.64075284,173.29,173.21,9.4189]
[1641016791790,1.64075284,173.3,173.21,9.4189]
[1641016792591,1.64075284,173.3,173.21,10.6643]
[1641016795923,3.97414784,173.3,173.21,10.6643]
[1641016798227,3.97414784,173.3,173.21,9.4189]
[1641016798425,4.23414784,173.3,173.21,9.4189]
[1641016798827,1.64075284,173.27,173.21,9.4189]
[1641016799026,1.90075284,173.27,173.21,9.4189]
[1641016799628,0.26,173.27,173.21,9.4189]
[1641016800028,1.90075284,173.28,173.21,9.4189]
[1641016800430,1.64075284,173.28,173.21,9.4189]
[1641016800726,1.64075284,173.27,173.21,9.4189]
[1641016801131,1.64075284,173.28,173.21,9.4189]
[1641016802127,1.64075284,173.28,173.21,16.7549]
[1641016802329,1.64075284,173.29,173.21,16.7549]
[1641016803229,2.333395,173.3,173.21,16.7549]
[1641016803629,2.333395,173.3,173.21,10.84559368]
[1641016804039,2.333395,173.3,173.21,9.4189]
[1641016806338,1.64075284,173.32,173.21,9.4189]
[1641016806937,1.64075284,173.32,173.21,10.84559368]
[1641016807137,1.64075284,173.32,173.22,10.12129071]
[1641016807336,1.64075284,173.32,173.27,8.6512]
[1641016807537,1.64075284,173.32,173.28,26.59870151]
[1641016807936,1.64075284,173.35,173.28,28.78539519]
[1641016808336,1.64075284,173.35,173.29,1.42669368]
[1641016808537,1.64075284,173.35,173.32,8.6504]
[1641016808737,1.64075284,173.4,173.32,8.6504]
[1641016808939,1.64075284,173.4,173.32,9.4104]
[1641016809337,1.64075284,173.41,173.32,9.4104]
[1641016811338,75.3748,173.45,173.32,9.4104]
[1641016812138,75.3748,173.45,173.32,10.6835]
[1641016813939,74.0229,173.45,173.32,12.11019368]
[1641016814540,74.2829,173.45,173.32,10.6835]
[1641016814740,74.2829,173.45,173.32,9.4104]
[1641016814941,77.116295,173.45,173.32,0.5]
[1641016815343,77.116295,173.45,173.3,9.1531]
[1641016815542,107.57704784,173.45,173.3,9.1531]
[1641016815742,108.97981755,173.45,173.3,9.1531]
[1641016816143,1.3392,173.44,173.3,9.1531]
[1641016816342,8.6536,173.41,173.3,9.4131]
[1641016816543,8.9136,173.41,173.3,9.4131]
[1641016818452,8.6527,173.43,173.3,9.4131]
[1641016818651,1.5992,173.44,173.3,10.83979368]
[1641016819352,2.0992,173.44,173.3,9.4131]
[1641016820157,1.64075284,173.37,173.3,9.4131]
[1641016820652,1.64075284,173.37,173.3,10.83979368]
[1641016821154,0.14075284,173.37,173.3,10.83979368]
[1641016821572,3.26716595,173.42,173.3,10.83979368]
[1641016821772,3.26716595,173.42,173.31,1.2856]
[1641016821974,3.26716595,173.42,173.36,8.6494]
[1641016822173,76.5921,173.51,173.36,8.6494]
[1641016822174,3.26716595,173.44,173.37,23.90567229]
[1641016822373,3.26716595,173.44,173.37,24.40567229]
[1641016822572,3.26716595,173.44,173.37,24.66567229]
[1641016822972,3.52716595,173.44,173.37,24.66567229]
[1641016823374,3.26716595,173.44,173.37,24.66567229]
[1641016823775,6.55890734,173.44,173.37,24.66567229]
[1641016824174,6.55890734,173.44,173.37,0.5]
[1641016824372,5.60056095,173.45,173.32,3.19939368]
[1641016824574,0.26,173.44,173.32,3.19939368]
[1641016824774,5.60056095,173.45,173.32,3.19939368]
[1641016824974,5.86056095,173.45,173.32,3.19939368]
[1641016825174,3.26716595,173.44,173.32,27.99282713]
[1641016825577,3.26716595,173.43,173.34,8.6514]
[1641016825978,3.26716595,173.43,173.34,9.4114]
[1641016826182,9.8266925,173.43,173.34,9.4114]
[1641016826778,4.55976595,173.44,173.34,9.4114]
[1641016827480,6.55923568,173.43,173.34,9.4114]
[1641016827882,10.08640163,173.43,173.34,9.4114]
[1641016828680,3.52716595,173.43,173.34,9.4114]
[1641016829179,6.55962701,173.42,173.34,9.4114]
[1641016829382,6.55962701,173.42,173.34,0.76]
[1641016829581,6.55962701,173.42,173.34,0.5]
[1641016829782,6.55962701,173.42,173.32,100.62022713]
[1641016830684,3.26716595,173.44,173.35,8.6508]
[1641016830884,3.26716595,173.44,173.35,9.1508]
[1641016831083,3.26716595,173.44,173.35,9.4108]
[1641016831683,3.26716595,173.44,173.35,0.76]
[1641016831884,3.26716595,173.44,173.32,100.62022713]
[1641016832486,1.277,173.43,173.32,100.62022713]
[1641016832685,1.277,173.43,173.34,8.6514]
[1641016832885,1.277,173.43,173.34,9.1514]
[1641016833085,1.277,173.43,173.34,9.4114]
[1641016833286,1.277,173.43,173.34,0.76]
[1641016833485,1.277,173.43,173.34,0.5]
[1641016833688,1.277,173.43,173.34,8.6514]
[1641016833886,1.277,173.43,173.34,9.4114]
[1641016835488,3.26716595,173.46,173.34,9.4114]
[1641016835691,3.26716595,173.46,173.34,10.83809368]
[1641016836292,1.3399,173.47,173.34,10.83809368]
[1641016836488,1.3399,173.47,173.35,1.3471]
[1641016836692,1.3399,173.47,173.37,8.6496]
[1641016836988,1.3399,173.47,173.37,9.4096]
[1641016837489,9.82556308,173.46,173.37,9.4096]
[1641016838288,6.55839713,173.46,173.37,9.4096]
[1641016838488,6.55839713,173.46,173.37,9.1496]
[1641016838688,15.46919713,173.46,173.37,0.5]
[1641016838890,19.23636308,173.46,173.32,72.3674]
[1641016839293,3.26716595,173.44,173.32,72.8674]
[1641016839497,1.2618,173.43,173.32,72.8674]
[1641016839889,1.2618,173.43,173.32,73.1274]
[1641016840691,9.9143,173.43,173.32,81.7799]
[1641016841092,13.18146595,173.43,173.32,81.7799]
[1641016842490,15.21233042,173.42,173.32,81.7799]
[1641016843192,8.6526,173.42,173.32,81.7799]
[1641016843591,4.78896595,173.43,173.32,81.7799]
[1641016844393,1.5218,173.43,173.32,81.7799]
[1641016844592,10.174,173.43,173.32,81.7799]
[1641016845392,13.44116595,173.43,173.32,81.7799]
[1641016845797,12.94116595,173.43,173.32,81.7799]
[1641016849099,12.68116595,173.43,173.32,81.7799]
[1641016850403,13.44116595,173.43,173.32,73.1274]
[1641016850605,13.44116595,173.43,173.32,72.6274]
[1641016850806,13.44116595,173.43,173.32,73.1274]
[1641016851402,9.82737197,173.42,173.32,73.1274]
[1641016851603,8.6542,173.39,173.32,73.1274]
[1641016851804,8.6542,173.39,173.32,0.5]
[1641016852013,1.2528,173.38,173.27,1.2951]
[1641016852411,1.2528,173.38,173.27,0.5]
[1641016852412,2.0128,173.38,173.27,0.5]
[1641016852612,1.5128,173.38,173.27,0.5]
[1641016852810,2.0128,173.38,173.27,0.5]
[1641016853011,2.0128,173.38,173.22,77.64169368]
[1641016853210,2.0128,173.38,173.22,155.45269368]
[1641016853611,8.6566,173.34,173.25,8.6564]
[1641016854014,8.6566,173.34,173.25,9.4164]
[1641016855712,8.6566,173.34,173.25,0.26]
[1641016855915,8.9166,173.34,173.25,0.26]
[1641016856112,8.9166,173.34,173.23,0.5]
[1641016856314,9.4166,173.34,173.23,0.5]
[1641016856614,9.4166,173.34,173.22,78.571]
[1641016857215,1.2333,173.33,173.22,0.76]
[1641016857416,8.6588,173.3,173.22,0.26]
[1641016857618,8.6588,173.3,173.2,2.18669368]
[1641016858817,8.6588,173.3,173.2,10.84549368]
[1641016859218,37.4781,173.32,173.2,10.84549368]
[1641016859419,8.6581,173.32,173.2,10.84549368]
[1641016859721,0.26,173.32,173.2,10.84549368]
[1641016859922,0.26,173.32,173.21,1.355]
[1641016860119,0.26,173.32,173.22,8.6576]
[1641016860324,1.4933,173.33,173.22,8.6576]
[1641016860520,1.4933,173.33,173.22,9.4176]
[1641016861522,1.4933,173.33,173.22,10.84429368]
[1641016861723,8.6578,173.32,173.22,10.84429368]
[1641016862125,7.4178,173.32,173.22,10.84429368]
[1641016862526,0.26,173.32,173.22,10.84429368]
[1641016862959,1.4933,173.33,173.22,10.84429368]
[1641016863156,1.2333,173.33,173.22,10.84429368]
[1641016863359,1.4933,173.33,173.22,10.84429368]
[1641016863758,10.1504,173.33,173.22,10.84429368]
[1641016865259,10.1504,173.33,173.22,9.4176]
[1641016869063,10.1504,173.33,173.22,10.84429368]
[1641016869465,10.1504,173.33,173.24,8.6567]
[1641016869665,9.8904,173.33,173.24,8.9167]
[1641016869965,1.2333,173.33,173.24,9.4167]
[1641016870167,8.6566,173.35,173.24,9.4167]
[1641016870771,8.6566,173.35,173.25,1.2797]
[1641016871068,8.6566,173.35,173.25,10.696]
[1641016871267,37.4766,173.35,173.25,10.696]
[1641016872268,38.2366,173.35,173.25,0.26]
[1641016872467,37.2366,173.35,173.25,0.5]
[1641016872867,36.9766,173.35,173.24,9.4169]
[1641016873668,8.1566,173.35,173.25,24.04151695]
[1641016873894,8.4166,173.35,173.25,10.4221]
[1641016874069,8.4166,173.35,173.25,10.6821]
[1641016875471,8.9166,173.35,173.25,1.5257]
[1641016876679,8.4166,173.35,173.25,1.5257]
[1641016876877,8.4166,173.35,173.25,2.0257]
[1641016877476,37.2366,173.35,173.25,2.0257]
[1641016878478,37.7366,173.35,173.25,2.0257]
[1641016878677,36.9766,173.35,173.25,2.0257]
[1641016878878,8.1566,173.35,173.25,2.0257]
[1641016879578,8.6566,173.35,173.25,2.0257]
[1641016879978,8.9166,173.35,173.25,2.0257]
[1641016880383,8.9166,173.35,173.25,1.5257]
[1641016882704,8.9166,173.35,173.18,77.0928]
[1641016882907,8.9166,173.35,173.18,77.5928]
[1641016883105,6.56296018,173.34,173.18,77.5928]
[1641016883305,8.6602,173.27,173.18,77.5928]
[1641016883506,8.6602,173.27,173.18,103.71734957]
[1641016883906,28.8671,173.31,173.18,112.63684957]
[1641016884107,29.1271,173.31,173.18,112.63684957]
[1641016884308,29.6271,173.31,173.18,112.63684957]
[1641016884709,1.2523,173.3,173.18,112.63684957]
[1641016885110,2.0123,173.3,173.18,112.63684957]
[1641016885309,8.6596,173.28,173.19,9.9932]
[1641016885611,8.6596,173.28,173.19,1.5938]
[1641016885812,8.6596,173.28,173.19,2.0938]
[1641016889910,8.6596,173.28,173.19,10.7533]
[1641016890713,8.6596,173.28,173.19,2.0938]
[1641016894319,8.6596,173.28,173.19,10.7534]
[1641016899628,8.6596,173.28,173.19,2.0938]
[1641016901236,9.1596,173.28,173.19,2.0938]
[1641016901931,14.9466,173.28,173.19,1.3338]
[1641016902133,15.2066,173.28,173.17,79.5873]
[1641016902333,15.2066,173.28,173.13,1.42669368]
[1641016902533,15.2066,173.28,173.12,75.728]
[1641016902933,15.2066,173.28,173.12,105.70398523]
[1641016903133,91.1662,173.28,173.12,105.70398523]
[1641016903433,119.9862,173.28,173.12,106.20398523]
[1641016903636,6.56557734,173.27,173.12,114.86708523]
[1641016903835,8.6626,173.22,173.12,116.55377891]
[1641016904034,8.6626,173.22,173.13,1.3089]
[1641016904234,28.82,173.26,173.13,1.3089]
[1641016904434,29.58,173.26,173.14,1.42669368]
[1641016904836,29.58,173.26,173.14,2.18669368]
[1641016905036,1.2587,173.25,173.14,2.18669368]
[1641016905437,1.7587,173.25,173.14,2.18669368]
[1641016905636,8.662,173.23,173.14,10.84839368]
[1641016906036,8.662,173.23,173.14,9.1617]
[1641016907342,8.662,173.23,173.14,9.4217]
[1641016910465,8.662,173.23,173.14,0.76]
[1641016910666,8.662,173.23,173.13,2.0689]
[1641016912568,8.662,173.23,173.13,10.7315]
[1641016915475,9.162,173.23,173.13,10.7315]
[1641016915676,9.162,173.23,173.13,2.0689]
[1641016916278,8.662,173.23,173.13,2.0689]
[1641016916977,8.922,173.23,173.13,2.0689]
[1641016917179,9.422,173.23,173.13,2.0689]
[1641016918479,9.422,173.23,173.13,1.8089]
[1641016918678,9.422,173.23,173.13,1.3089]
[1641016918878,9.422,173.23,173.13,1.8089]
[1641016919779,1.3356,173.22,173.13,1.8089]
[1641016919979,8.6639,173.19,173.13,2.0689]
[1641016920880,1.3356,173.22,173.13,2.0689]
[1641016921882,28.82,173.24,173.13,9.13359368]
[1641016922281,8.6609,173.26,173.13,17.79609368]
[1641016922481,30.1005,173.29,173.13,17.79609368]
[1641016923082,30.1072,173.3,173.13,17.79609368]
[1641016923481,8.66,173.27,173.13,17.79609368]
[1641016924483,8.66,173.27,173.13,12.15809368]
[1641016926083,9.42,173.27,173.13,12.15809368]
[1641016926683,8.6619,173.24,173.13,12.15809368]
[1641016929887,9.9502,173.26,173.13,12.15809368]
[1641016930186,2.333395,173.24,173.13,12.15809368]
[1641016931688,3.665795,173.24,173.13,12.15809368]
[1641016931888,12.327295,173.24,173.13,11.89809368]
[1641016933494,2.333395,173.24,173.13,11.89809368]
[1641016934491,2.333395,173.24,173.13,12.15809368]
[1641016935091,2.333395,173.24,173.13,17.82824997]
[1641016935292,2.333395,173.24,173.13,27.35023441]
[1641016938896,2.333395,173.24,173.13,21.68007812]
[1641016939098,2.333395,173.24,173.13,12.15809368]
[1641016940095,4.53196595,173.31,173.13,12.15809368]
[1641016940500,5.29196595,173.31,173.13,12.15809368]
[1641016940700,8.661,173.25,173.13,12.15809368]
[1641016943800,15.71,173.25,173.13,12.15809368]
[1641016944200,16.21,173.25,173.13,12.15809368]
[1641016944400,16.47,173.25,173.13,12.15809368]
[1641016945000,1.2773,173.24,173.13,12.15809368]
[1641016945220,8.6624,173.22,173.13,12.15809368]
[1641016946604,8.662,173.23,173.13,12.15809368]
[1641016947004,8.922,173.23,173.13,12.15809368]
[1641016947406,8.922,173.23,173.13,3.49559368]
[1641016947803,8.922,173.23,173.13,1.92669368]
[1641016948005,9.422,173.23,173.08,78.71519368]
[1641016948205,14.908,173.23,173.08,78.6211]
[1641016948407,14.908,173.23,173.08,79.1211]
[1641016948605,14.908,173.23,173.08,80.54779368]
[1641016948805,8.6645,173.18,173.08,120.21780483]
[1641016949405,8.6645,173.18,173.08,120.47780483]
[1641016949804,8.6645,173.18,173.08,119.05111115]
[1641016953309,78.79241906,173.22,173.08,120.47780483]
[1641016953508,79.05241906,173.22,173.08,120.47780483]
[1641016953908,78.79241906,173.22,173.08,120.47780483]
[1641016954108,1.58641906,173.22,173.08,120.47780483]
[1641016954308,1.58641906,173.23,173.08,120.47780483]
[1641016954708,1.58641906,173.23,173.09,9.52198444]
[1641016954908,1.58641906,173.23,173.16,8.6606]
[1641016955112,2.333395,173.24,173.16,8.9206]
[1641016955309,2.333395,173.24,173.16,9.4206]
[1641016957913,2.333395,173.24,173.16,10.84729368]
[1641016958313,2.333395,173.24,173.16,10.08729368]
[1641016958514,3.093395,173.24,173.13,1.42669368]
[1641016958716,3.093395,173.24,173.08,78.5833]
[1641016958916,4.49620795,173.24,173.08,78.5833]
[1641016959316,1.2942,173.23,173.05,72.5559]
[1641016959516,1.58641906,173.2,173.05,72.5559]
[1641016960017,1.58641906,173.19,173.05,72.5559]
[1641016960218,1.58641906,173.19,173.05,73.0559]
[1641016960416,8.6671,173.13,173.05,73.0559]
[1641016960615,8.6671,173.13,173.05,73.3159]
[1641016960817,30.1369,173.18,173.05,73.3159]
[1641016961019,30.3969,173.18,173.05,73.3159]
[1641016961216,30.8969,173.18,173.05,73.3159]
[1641016961621,30.8969,173.18,173.05,73.0559]
[1641016962617,8.6665,173.14,173.05,73.0559]
[1641016963023,8.6665,173.14,173.05,73.3159]
[1641016965643,30.8969,173.18,173.05,81.9819]
[1641016965644,8.666,173.15,173.05,81.9819]
[1641016965843,1.5068,173.18,173.05,81.9819]
[1641016966043,1.5068,173.18,173.06,1.3468]
[1641016966243,2.0068,173.18,173.06,1.3468]
[1641016966443,2.0068,173.18,173.06,2.1068]
[1641016966844,10.6717,173.18,173.06,2.1068]
[1641016967243,12.25811906,173.18,173.06,2.1068]
[1641016968446,10.6717,173.18,173.06,2.1068]
[1641016969546,10.6717,173.18,173.06,1.6068]
[1641016970247,12.25811906,173.18,173.06,1.6068]
[1641016971247,39.4917,173.18,173.06,1.3468]
[1641016972646,39.4917,173.18,173.06,1.6068]
[1641016974949,39.4917,173.18,173.06,0.26]
[1641016975149,78.7273,173.17,173.0,77.3861]
[1641016975350,8.669,173.09,173.0,77.8861]
[1641016975548,8.669,173.09,173.0,78.1461]
[1641016975549,8.929,173.09,173.0,78.1461]
[1641016975748,8.929,173.09,173.0,77.6461]
[1641016976147,9.429,173.09,173.0,77.6461]
[1641016979754,9.429,173.09,173.0,86.3164]
[1641016981060,9.429,173.09,173.0,77.6461]
[1641016981462,9.429,173.09,173.0,76.3903]
[1641016984160,14.353,173.09,172.95,28.9007]
[1641016984362,15.75581295,173.09,172.97,8.6713]
[1641016984559,15.75581295,173.09,172.95,0.5]
[1641016984763,14.353,173.09,172.95,0.5]
[1641016985160,28.82,173.08,172.95,30.60767022]
[1641016985359,29.32,173.08,172.95,31.10767022]
[1641016985660,28.9093,173.06,172.95,31.36767022]
[1641016985861,0.5,173.06,172.95,31.36767022]
[1641016986062,0.76,173.06,172.95,31.36767022]
[1641016986461,0.5,173.06,172.95,31.36767022]
[1641016986661,8.6721,173.04,172.95,40.03987022]
[1641016988462,8.6712,173.05,172.95,40.03987022]
[1641016988863,8.9312,173.05,172.95,40.03987022]
[1641016990063,8.9312,173.05,172.95,39.77987022]
[1641016990264,9.4312,173.05,172.95,39.77987022]
[1641016991369,9.4312,173.05,172.95,40.03987022]
[1641016991370,9.1712,173.05,172.95,40.03987022]
[1641016991565,9.4312,173.05,172.95,40.03987022]
[1641016991965,8.9312,173.05,172.95,40.03987022]
[1641016992367,9.4312,173.05,172.95,40.03987022]
[1641016992568,8.9312,173.05,172.95,40.03987022]
[1641016993772,9.4312,173.05,172.95,40.03987022]
[1641016993973,9.4312,173.05,172.95,30.86767022]
[1641016994671,9.4312,173.05,172.95,0.26]
[1641016995073,9.4312,173.05,172.91,77.6585]
[1641016995473,1.2788,173.04,172.93,8.6726]
[1641016995671,8.6726,173.03,172.93,8.6726]
[1641016995872,8.6726,173.03,172.93,9.4326]
[1641016996073,8.9326,173.03,172.93,9.4326]
[1641016996276,11.005995,173.03,172.93,9.4326]
[1641016996576,11.005895,173.03,172.93,0.5]
[1641016996773,11.765895,173.03,172.91,76.8985]
[1641016997794,11.765895,173.03,172.92,23.93450195]
[1641016997997,11.765895,173.03,172.92,24.19450195]
[1641016998199,13.044995,173.03,172.92,24.19450195]
[1641016998398,13.044995,173.03,172.91,76.8985]
[1641016998597,19.684995,173.03,172.91,76.8985]
[1641016999399,19.684995,173.03,172.91,30.38346144]
[1641016999597,19.684995,173.03,172.91,30.64346144]
[1641016999797,13.044995,173.03,172.91,30.64346144]
[1641017000197,13.044995,173.03,172.91,31.14346144]
[1641017000398,20.777995,173.03,172.91,30.64346144]
[1641017000598,20.777995,173.03,172.91,30.38346144]
[1641017001998,13.044995,173.03,172.91,30.64346144]
[1641017003000,12.544995,173.03,172.91,31.14346144]
[1641017003299,13.044995,173.03,172.91,31.14346144]
[1641017003699,13.044995,173.03,172.92,1.2819]
[1641017003899,13.044995,173.03,172.92,1.7819]
[1641017004100,13.044995,173.03,172.92,2.0419]